fUSD/lending_fUSD_20241225
["ID","MTS","AMOUNT","RATE_DAILY","PERIOD"]
[346636942,1735137046196,-698.03,0.00011721,2]
[346636943,1735137046206,-934.06,0.00011721,2]
[346636944,1735137046216,-500.0,0.00011721,2]
[346636945,1735137046226,-500.0,0.00011721,2]
[346636946,1735137046236,-1294.03,0.00011721,2]
[346636947,1735137046246,-519.38044913,0.00011721,2]
[346636948,1735137046263,-368.21850329,0.00011721,2]
[346636949,1735137046410,-2019.74104758,0.00011721,2]
[346636950,1735137046420,-172.50504907,0.00011721,2]
[346636959,1735137560937,671.3,8.219e-05,2]
[346636961,1735137905091,16000.0,0.0001901,120]
[346637087,1735138232189,-218.16360643,9.909e-05,2]
[346637088,1735138232199,-158.81,9.948e-05,2]
[346637089,1735138232208,-250.0,9.969e-05,2]
[346637090,1735138232217,-250.0,9.97e-05,2]
[346637091,1735138232227,-250.0,9.983e-05,2]
[346637092,1735138232236,-1000.0,9.992e-05,2]
[346637093,1735138232246,-300.0,0.00010008,2]
[346637094,1735138232258,-21759.04,0.00010009,2]
[346637095,1735138232269,-530.57,0.00010137,2]
[346637096,1735138232278,-497.62,0.00010187,2]
[346637097,1735138232287,-490.52,0.00010187,2]
[346637098,1735138232296,-567.03,0.00010187,2]
[346637099,1735138232305,-671.3,0.00010477,2]
[346637100,1735138232314,-501.3,0.00010706,2]
[346637101,1735138232323,-501.62,0.0001071,2]
[346637102,1735138232332,-503.2,0.00010715,2]
[346637103,1735138232340,-507.46,0.00010722,2]
[346637104,1735138232350,-504.32,0.00010732,2]
[346637105,1735138232359,-504.05,0.00010747,2]
[346637106,1735138232368,-171.51,0.0001075,2]
[346637107,1735138232378,-500.95,0.00010767,2]
[346637108,1735138232387,-501.71,0.00010772,2]
[346637109,1735138232396,-499.29,0.0001078,2]
[346637110,1735138232405,-490.74,0.0001079,2]
[346637111,1735138232415,-508.12,0.00010798,2]
[346637112,1735138232424,-1298.76855443,0.00010799,2]
[346637113,1735138232436,-11782.12934557,0.00010799,2]
[346637114,1735138232445,-1000.0,0.00010799,2]
[346637115,1735138232455,-491.3,0.00010799,2]
[346637116,1735138232465,-501.87,0.00010799,2]
[346637117,1735138232475,-503.39,0.00010799,2]
[346637118,1735138232484,-498.11,0.00010799,2]
[346637119,1735138232494,-509.97,0.00010799,2]
[346637120,1735138232503,-504.72,0.00010799,2]
[346637121,1735138232515,-495.58,0.00010799,2]
[346637122,1735138232525,-493.64,0.00010799,2]
[346637123,1735138232534,-494.26,0.00010799,2]
[346637124,1735138232544,-507.02,0.00010799,2]
[346637125,1735138232554,-500.68,0.00010799,2]
[346637126,1735138232563,-490.1,0.00010799,2]
[346637127,1735138232576,-498.6,0.00010799,2]
[346637128,1735138232585,-505.29,0.00010876,2]
[346637129,1735138232595,-507.3,0.00010876,2]
[346637130,1735138232605,-499.39,0.00010876,2]
[346637131,1735138232614,-800.0,0.00010876,2]
[346637132,1735138232624,-491.76,0.00010899,2]
[346637133,1735138232633,-500.0,0.00010899,2]
[346637134,1735138232642,-500.0,0.00010899,2]
[346637135,1735138232652,-500.0,0.00010899,2]
[346637136,1735138232662,-500.0,0.00010899,2]
[346637137,1735138232671,-386.92979387,0.00010899,2]
[346637138,1735138232681,-500.0,0.00010899,2]
[346637139,1735138232690,-500.0,0.00010899,2]
[346637140,1735138232700,-500.0,0.00010899,2]
[346637141,1735138232709,-500.0,0.00010899,2]
[346637142,1735138232720,-477.41594708,0.00010899,2]
[346637143,1735138232730,-500.0,0.00010899,2]
[346637144,1735138232739,-500.0,0.00010899,2]
[346637145,1735138232749,-500.0,0.00010899,2]
[346637146,1735138232758,-500.0,0.00010899,2]
[346637147,1735138232768,-500.0,0.00010899,2]
[346637148,1735138232777,-500.0,0.00010899,2]
[346637150,1735138232786,-500.0,0.00010899,2]
[346637151,1735138232795,-500.0,0.00010899,2]
[346637152,1735138232804,-500.0,0.00010899,2]
[346637153,1735138232813,-500.0,0.00010899,2]
[346637154,1735138232823,-500.0,0.00010899,2]
[346637155,1735138232832,-500.0,0.00010899,2]
[346637156,1735138232841,-542.21,0.00010899,2]
[346637157,1735138232850,-500.0,0.00010899,2]
[346637158,1735138232859,-500.0,0.00010899,2]
[346637159,1735138232869,-500.0,0.00010899,2]
[346637160,1735138232879,-500.0,0.00010899,2]
[346637161,1735138232888,-500.0,0.00010899,2]
[346637162,1735138232897,-500.0,0.00010899,2]
[346637163,1735138232906,-500.0,0.00010899,2]
[346637165,1735138232915,-562.17,0.00010899,2]
[346637166,1735138232925,-615.5812369,0.00010899,2]
[346637168,1735138232934,-500.0,0.00010899,2]
[346637170,1735138232943,-500.0,0.00010899,2]
[346637172,1735138232952,-500.0,0.00010899,2]
[346637174,1735138232961,-150.0,0.00010959,2]
[346637176,1735138232970,-1005.1345,0.00010999,2]
[346637178,1735138232980,-19534.28177131,0.00011,2]
[346637180,1735138232989,-371.0,0.00011009,2]
[346637182,1735138232998,-549.7129,0.00011073,2]
[346637184,1735138233008,-444.212,0.0001113,2]
[346637186,1735138233018,-500.0,0.00011173,2]
[346637188,1735138233027,-500.0,0.00011173,2]
[346637190,1735138233035,-500.0,0.00011173,2]
[346637192,1735138233045,-500.0,0.00011173,2]
[346637194,1735138233054,-500.0,0.00011173,2]
[346637196,1735138233064,-500.0,0.00011173,2]
[346637198,1735138233073,-500.0,0.00011173,2]
[346637201,1735138233089,-500.0,0.00011173,2]
[346637203,1735138233099,-500.0,0.00011173,2]
[346637205,1735138233110,-500.0,0.00011173,2]
[346637207,1735138233120,-500.0,0.00011173,2]
[346637209,1735138233131,-500.0,0.00011173,2]
[346637210,1735138233140,-500.0,0.00011173,2]
[346637212,1735138233149,-500.0,0.00011173,2]
[346637214,1735138233159,-500.0,0.00011173,2]
[346637216,1735138233170,-500.0,0.00011173,2]
[346637218,1735138233180,-500.0,0.00011173,2]
[346637220,1735138233190,-500.0,0.00011173,2]
[346637222,1735138233199,-173.19316133,0.00011173,2]
[346637223,1735138233208,-500.0,0.00011173,2]
[346637225,1735138233218,-542.21,0.00011173,2]
[346637227,1735138233227,-500.0,0.00011173,2]
[346637229,1735138233236,-500.0,0.00011173,2]
[346637230,1735138233246,-500.0,0.00011173,2]
[346637231,1735138233256,-500.0,0.00011173,2]
[346637232,1735138233267,-500.0,0.00011173,2]
[346637233,1735138233277,-500.0,0.00011173,2]
[346637234,1735138233286,-499.71133869,0.00011173,2]
[346637235,1735138233296,-562.17,0.00011173,2]
[346637236,1735138233306,-500.0,0.00011173,2]
[346637237,1735138233316,-500.0,0.00011173,2]
[346637238,1735138233327,-1000.0,0.00011241,2]
[346637239,1735138233336,-429.10429252,0.00011302,2]
[346637240,1735138233348,-288.2881,0.00011347,2]
[346637241,1735138233357,-300.0,0.0001137,2]
[346637242,1735138233367,-436.48,0.0001137,2]
[346637243,1735138233377,-300.0,0.0001137,2]
[346637244,1735138233387,-300.0,0.0001137,2]
[346637245,1735138233398,-436.48,0.0001137,2]
[346637246,1735138233408,-435.66,0.0001137,2]
[346637247,1735138233417,-647.39,0.00011444,2]
[346637248,1735138233427,-525.87946334,0.00011444,2]
[346637249,1735138233436,-500.0,0.00011444,2]
[346637250,1735138233446,-500.0,0.00011444,2]
[346637251,1735138233456,-2279.42,0.00011444,2]
[346637252,1735138233466,-517.58,0.00011444,2]
[346637253,1735138233476,-562.98,0.00011444,2]
[346637254,1735138233487,-1455.96,0.00011444,2]
[346637255,1735138233497,-500.0,0.00011444,2]
[346637256,1735138233506,-500.0,0.00011444,2]
[346637257,1735138233518,-892.07,0.00011444,2]
[346637258,1735138233529,-500.0,0.00011444,2]
[346637259,1735138233539,-500.0,0.00011444,2]
[346637260,1735138233551,-1611.91,0.00011444,2]
[346637261,1735138233563,-500.0,0.00011444,2]
[346637262,1735138233574,-1105.83,0.00011444,2]
[346637263,1735138233584,-500.0,0.00011444,2]
[346637264,1735138233594,-962.59,0.00011444,2]
[346637265,1735138233605,-500.0,0.00011444,2]
[346637266,1735138233615,-1443.93,0.00011444,2]
[346637267,1735138233625,-3164.9,0.00011444,2]
[346637268,1735138233635,-500.0,0.00011444,2]
[346637269,1735138233645,-500.0,0.00011444,2]
[346637270,1735138233655,-699.47,0.00011444,2]
[346637271,1735138233665,-500.0,0.00011444,2]
[346637272,1735138233675,-500.0,0.00011444,2]
[346637273,1735138233686,-546.99,0.00011444,2]
[346637274,1735138233696,-501.35,0.00011444,2]
[346637275,1735138233706,-500.0,0.00011444,2]
[346637276,1735138233717,-500.0,0.00011444,2]
[346637277,1735138233726,-955.27,0.00011444,2]
[346637278,1735138233736,-500.0,0.00011444,2]
[346637279,1735138233746,-500.0,0.00011444,2]
[346637280,1735138233756,-500.0,0.00011444,2]
[346637281,1735138233767,-500.0,0.00011444,2]
[346637282,1735138233777,-1780.7,0.00011444,2]
[346637283,1735138233787,-500.0,0.00011445,2]
[346637284,1735138233798,-500.0,0.00011445,2]
[346637285,1735138233807,-500.0,0.00011445,2]
[346637286,1735138233820,-500.0,0.00011445,2]
[346637287,1735138233830,-500.0,0.00011445,2]
[346637288,1735138233841,-500.0,0.00011445,2]
[346637289,1735138233851,-500.0,0.00011445,2]
[346637290,1735138233861,-500.0,0.00011445,2]
[346637291,1735138233871,-474.93595057,0.00011445,2]
[346637292,1735138233881,-500.0,0.00011445,2]
[346637293,1735138233891,-500.0,0.00011445,2]
[346637294,1735138233900,-500.0,0.00011445,2]
[346637295,1735138233911,-500.0,0.00011445,2]
[346637296,1735138233920,-500.0,0.00011445,2]
[346637297,1735138233930,-500.0,0.00011445,2]
[346637298,1735138233940,-500.0,0.00011445,2]
[346637299,1735138233949,-500.0,0.00011445,2]
[346637300,1735138233960,-500.0,0.00011445,2]
[346637301,1735138233969,-500.0,0.00011445,2]
[346637302,1735138233979,-500.0,0.00011445,2]
[346637303,1735138233989,-500.0,0.00011445,2]
[346637304,1735138233999,-500.0,0.00011445,2]
[346637305,1735138234010,-500.0,0.00011445,2]
[346637306,1735138234020,-500.0,0.00011445,2]
[346637307,1735138234031,-412.65059003,0.00011445,2]
[346637308,1735138234043,-500.0,0.00011445,2]
[346637309,1735138234054,-500.0,0.00011445,2]
[346637310,1735138234064,-500.0,0.00011445,2]
[346637311,1735138234074,-500.0,0.00011445,2]
[346637312,1735138234085,-500.0,0.00011445,2]
[346637313,1735138234098,-622.44781444,0.00011445,2]
[346637314,1735138234111,-500.0,0.00011445,2]
[346637315,1735138234120,-1347.11,0.00011445,2]
[346637316,1735138234131,-500.0,0.00011445,2]
[346637317,1735138234143,-500.0,0.00011445,2]
[346637318,1735138234153,-500.0,0.00011445,2]
[346637319,1735138234162,-500.0,0.00011445,2]
[346637320,1735138234174,-1475.29,0.00011445,2]
[346637321,1735138234183,-500.0,0.00011445,2]
[346637322,1735138234193,-500.0,0.00011445,2]
[346637323,1735138234203,-500.0,0.00011445,2]
[346637324,1735138234213,-680.74,0.00011445,2]
[346637325,1735138234223,-538.48,0.00011445,2]
[346637326,1735138234232,-500.0,0.00011445,2]
[346637327,1735138234242,-500.0,0.00011445,2]
[346637328,1735138234251,-500.0,0.00011445,2]
[346637329,1735138234263,-500.0,0.00011445,2]
[346637330,1735138234272,-500.0,0.00011445,2]
[346637331,1735138234282,-500.0,0.00011445,2]
[346637332,1735138234292,-816.46,0.00011445,2]
[346637333,1735138234301,-500.0,0.00011445,2]
[346637334,1735138234311,-500.0,0.00011445,2]
[346637335,1735138234320,-537.18,0.00011445,2]
[346637336,1735138234330,-500.0,0.00011445,2]
[346637337,1735138234340,-500.0,0.00011445,2]
[346637338,1735138234350,-1121.16,0.00011445,2]
[346637339,1735138234359,-500.0,0.00011445,2]
[346637340,1735138234369,-500.0,0.00011445,2]
[346637341,1735138234379,-500.0,0.00011445,2]
[346637342,1735138234390,-500.0,0.00011445,2]
[346637343,1735138234401,-500.0,0.00011445,2]
[346637344,1735138234412,-500.0,0.00011445,2]
[346637345,1735138234422,-435.42024439,0.00011445,2]
[346637346,1735138234432,-500.0,0.00011445,2]
[346637347,1735138234442,-500.0,0.00011445,2]
[346637348,1735138234451,-585.06,0.00011445,2]
[346637349,1735138234461,-500.0,0.00011445,2]
[346637350,1735138234471,-500.0,0.00011445,2]
[346637351,1735138234480,-1107.46,0.00011445,2]
[346637352,1735138234490,-2619.04,0.00011445,2]
[346637353,1735138234499,-500.0,0.00011445,2]
[346637354,1735138234509,-531.18,0.00011445,2]
[346637355,1735138234519,-676.55,0.00011445,2]
[346637356,1735138234528,-500.0,0.00011445,2]
[346637357,1735138234538,-526.33,0.00011445,2]
[346637358,1735138234548,-500.0,0.00011445,2]
[346637359,1735138234558,-518.07,0.00011445,2]
[346637360,1735138234568,-1078.76,0.00011445,2]
[346637361,1735138234579,-500.0,0.00011445,2]
[346637362,1735138234589,-500.0,0.00011445,2]
[346637363,1735138234599,-500.0,0.00011445,2]
[346637364,1735138234608,-500.0,0.00011445,2]
[346637365,1735138234618,-1145.47,0.00011445,2]
[346637366,1735138234628,-500.0,0.00011445,2]
[346637367,1735138234637,-1073.77,0.00011445,2]
[346637368,1735138234647,-500.0,0.00011445,2]
[346637369,1735138234656,-581.69,0.00011445,2]
[346637370,1735138234666,-500.0,0.00011445,2]
[346637371,1735138234675,-500.0,0.00011445,2]
[346637372,1735138234685,-3524.36,0.00011445,2]
[346637373,1735138234694,-500.0,0.00011445,2]
[346637374,1735138234703,-500.0,0.00011445,2]
[346637375,1735138234713,-500.0,0.00011445,2]
[346637376,1735138234723,-1078.36,0.00011445,2]
[346637377,1735138234733,-500.0,0.00011445,2]
[346637378,1735138234742,-500.0,0.00011445,2]
[346637379,1735138234753,-500.0,0.00011445,2]
[346637380,1735138234764,-778.38,0.00011445,2]
[346637381,1735138234774,-2050.37,0.00011445,2]
[346637382,1735138234784,-500.0,0.00011445,2]
[346637383,1735138234793,-7901.65,0.00011445,2]
[346637384,1735138234804,-2422.79,0.00011445,2]
[346637385,1735138234813,-500.0,0.00011445,2]
[346637386,1735138234823,-500.0,0.00011445,2]
[346637387,1735138234833,-765.29,0.00011445,2]
[346637388,1735138234844,-529.68,0.00011445,2]
[346637389,1735138234854,-500.0,0.00011445,2]
[346637390,1735138234864,-500.0,0.00011445,2]
[346637391,1735138234873,-500.0,0.00011445,2]
[346637392,1735138234883,-500.0,0.00011445,2]
[346637393,1735138234892,-712.8,0.00011445,2]
[346637394,1735138234902,-776.31,0.00011445,2]
[346637395,1735138234911,-509.91,0.00011445,2]
[346637396,1735138234921,-500.0,0.00011445,2]
[346637397,1735138234931,-500.0,0.00011446,2]
[346637398,1735138234941,-713.12,0.00011446,2]
[346637399,1735138234950,-4948.14,0.00011446,2]
[346637400,1735138234960,-500.0,0.00011446,2]
[346637401,1735138234970,-561.47,0.00011446,2]
[346637402,1735138234980,-520.04,0.00011446,2]
[346637403,1735138234990,-500.0,0.00011446,2]
[346637404,1735138235000,-1114.29,0.00011446,2]
[346637405,1735138235010,-1000.0,0.00011446,2]
[346637406,1735138235021,-570.74,0.00011446,2]
[346637407,1735138235031,-500.0,0.00011446,2]
[346637408,1735138235040,-1569.54,0.00011446,2]
[346637409,1735138235050,-545.05,0.00011446,2]
[346637410,1735138235060,-500.0,0.00011447,2]
[346637411,1735138235069,-500.0,0.00011447,2]
[346637412,1735138235079,-500.0,0.00011447,2]
[346637413,1735138235091,-361.09500849,0.00011447,2]
[346637414,1735138235101,-500.0,0.00011447,2]
[346637415,1735138235111,-500.0,0.00011447,2]
[346637416,1735138235120,-500.0,0.00011447,2]
[346637417,1735138235130,-500.0,0.00011447,2]
[346637418,1735138235142,-500.0,0.00011447,2]
[346637419,1735138235151,-500.0,0.00011447,2]
[346637420,1735138235161,-500.0,0.00011447,2]
[346637421,1735138235172,-500.0,0.00011447,2]
[346637422,1735138235181,-500.0,0.00011447,2]
[346637423,1735138235191,-500.0,0.00011447,2]
[346637424,1735138235200,-500.0,0.00011447,2]
[346637425,1735138235210,-500.0,0.00011447,2]
[346637426,1735138235220,-500.0,0.00011447,2]
[346637427,1735138235229,-500.0,0.00011447,2]
[346637428,1735138235239,-500.0,0.00011447,2]
[346637429,1735138235249,-542.21,0.00011447,2]
[346637430,1735138235258,-500.0,0.00011447,2]
[346637431,1735138235268,-500.0,0.00011447,2]
[346637432,1735138235278,-500.0,0.00011447,2]
[346637433,1735138235287,-500.0,0.00011447,2]
[346637434,1735138235297,-500.0,0.00011447,2]
[346637435,1735138235307,-500.0,0.00011447,2]
[346637436,1735138235316,-562.17,0.00011447,2]
[346637437,1735138235326,-500.0,0.00011447,2]
[346637438,1735138235335,-500.0,0.00011447,2]
[346637439,1735138235345,-567.03,0.00011461,2]
[346637440,1735138235354,-570.7606491,0.00011486,2]
[346637441,1735138235363,-1082.84785342,0.00011487,2]
[346637442,1735138235373,-1140.07621163,0.00011487,2]
[346637443,1735138235383,-1088.47096884,0.00011487,2]
[346637444,1735138235392,-353.0,0.000117,2]
[346637445,1735138235402,-10653.5821207,0.00011717,2]
[346637446,1735138235412,-2313.2570836,0.00011717,2]
[346637447,1735138235421,-500.0,0.00011718,2]
[346637448,1735138235432,-500.0,0.00011718,2]
[346637449,1735138235441,-2279.42,0.00011718,2]
[346637450,1735138235451,-517.58,0.00011718,2]
[346637451,1735138235461,-562.98,0.00011718,2]
[346637452,1735138235471,-1455.96,0.00011718,2]
[346637453,1735138235482,-500.0,0.00011718,2]
[346637454,1735138235491,-500.0,0.00011718,2]
[346637455,1735138235501,-892.07,0.00011718,2]
[346637456,1735138235512,-500.0,0.00011718,2]
[346637457,1735138235522,-500.0,0.00011718,2]
[346637458,1735138235532,-1611.91,0.00011718,2]
[346637459,1735138235543,-500.0,0.00011718,2]
[346637460,1735138235552,-1105.83,0.00011718,2]
[346637461,1735138235561,-500.0,0.00011718,2]
[346637462,1735138235571,-962.59,0.00011718,2]
[346637463,1735138235580,-500.0,0.00011718,2]
[346637464,1735138235590,-1443.93,0.00011718,2]
[346637465,1735138235599,-3164.9,0.00011718,2]
[346637466,1735138235609,-500.0,0.00011718,2]
[346637467,1735138235618,-500.0,0.00011718,2]
[346637468,1735138235628,-699.47,0.00011718,2]
[346637469,1735138235637,-500.0,0.00011718,2]
[346637470,1735138235647,-475.38829148,0.00011718,2]
[346637471,1735138235657,-546.99,0.00011718,2]
[346637472,1735138235667,-501.35,0.00011718,2]
[346637473,1735138235677,-500.0,0.00011718,2]
[346637474,1735138235686,-955.27,0.00011718,2]
[346637475,1735138235697,-500.0,0.00011718,2]
[346637476,1735138235707,-500.0,0.00011718,2]
[346637477,1735138235717,-500.0,0.00011718,2]
[346637478,1735138235727,-500.0,0.00011718,2]
[346637479,1735138235736,-1780.7,0.00011718,2]
[346637480,1735138235746,-500.0,0.00011719,2]
[346637481,1735138235756,-500.0,0.00011719,2]
[346637482,1735138235766,-500.0,0.00011719,2]
[346637483,1735138235775,-500.0,0.00011719,2]
[346637484,1735138235784,-500.0,0.00011719,2]
[346637485,1735138235794,-500.0,0.00011719,2]
[346637486,1735138235803,-500.0,0.00011719,2]
[346637487,1735138235813,-500.0,0.00011719,2]
[346637488,1735138235822,-500.0,0.00011719,2]
[346637489,1735138235831,-500.0,0.00011719,2]
[346637490,1735138235841,-500.0,0.00011719,2]
[346637491,1735138236058,-500.0,0.00011719,2]
[346637492,1735138236068,-500.0,0.00011719,2]
[346637493,1735138236077,-500.0,0.00011719,2]
[346637494,1735138236089,-500.0,0.00011719,2]
[346637495,1735138236098,-500.0,0.00011719,2]
[346637496,1735138236107,-500.0,0.00011719,2]
[346637497,1735138236117,-500.0,0.00011719,2]
[346637498,1735138236126,-197.48347198,0.00011719,2]
[346637499,1735138236137,-500.0,0.00011719,2]
[346637500,1735138236146,-500.0,0.00011719,2]
[346637501,1735138236156,-500.0,0.00011719,2]
[346637502,1735138236167,-500.0,0.00011719,2]
[346637503,1735138236178,-500.0,0.00011719,2]
[346637504,1735138236189,-500.0,0.00011719,2]
[346637505,1735138236199,-500.0,0.00011719,2]
[346637506,1735138236208,-500.0,0.00011719,2]
[346637507,1735138236218,-500.0,0.00011719,2]
[346637508,1735138236227,-500.0,0.00011719,2]
[346637509,1735138236237,-1347.11,0.00011719,2]
[346637510,1735138236246,-500.0,0.00011719,2]
[346637511,1735138236257,-500.0,0.00011719,2]
[346637512,1735138236267,-500.0,0.00011719,2]
[346637513,1735138236277,-500.0,0.00011719,2]
[346637514,1735138236287,-1475.29,0.00011719,2]
[346637515,1735138236296,-500.0,0.00011719,2]
[346637516,1735138236307,-500.0,0.00011719,2]
[346637517,1735138236316,-500.0,0.00011719,2]
[346637518,1735138236326,-680.74,0.00011719,2]
[346637519,1735138236336,-538.48,0.00011719,2]
[346637520,1735138236346,-500.0,0.00011719,2]
[346637521,1735138236356,-500.0,0.00011719,2]
[346637522,1735138236366,-500.0,0.00011719,2]
[346637523,1735138236376,-556.14171904,0.00011719,2]
[346637524,1735138236385,-500.0,0.00011719,2]
[346637525,1735138236395,-500.0,0.00011719,2]
[346637526,1735138236406,-816.46,0.00011719,2]
[346637527,1735138236416,-308.99917906,0.00011719,2]
[346637528,1735138236426,-500.0,0.00011719,2]
[346637529,1735138236437,-537.18,0.00011719,2]
[346637530,1735138236447,-500.0,0.00011719,2]
[346637531,1735138236457,-500.0,0.00011719,2]
[346637532,1735138236466,-1121.16,0.00011719,2]
[346637533,1735138236475,-500.0,0.00011719,2]
[346637534,1735138236485,-500.0,0.00011719,2]
[346637535,1735138236495,-500.0,0.00011719,2]
[346637536,1735138236504,-500.0,0.00011719,2]
[346637537,1735138236514,-500.0,0.00011719,2]
[346637538,1735138236524,-500.0,0.00011719,2]
[346637539,1735138236534,-456.29899259,0.00011719,2]
[346637540,1735138236813,-43.70100741,0.00011719,2]
[346637541,1735138236824,-500.0,0.00011719,2]
[346637542,1735138236834,-266.51265061,0.00011719,2]
[346637543,1735138236875,-318.54734939,0.00011719,2]
[346637544,1735138236885,-500.0,0.00011719,2]
[346637545,1735138236895,-500.0,0.00011719,2]
[346637546,1735138236904,-329.64771108,0.00011719,2]
[346637547,1735138236916,-777.81228892,0.00011719,2]
[346637548,1735138236925,-2619.04,0.00011719,2]
[346637549,1735138236935,-500.0,0.00011719,2]
[346637550,1735138236944,-531.18,0.00011719,2]
[346637551,1735138236953,-676.55,0.00011719,2]
[346637552,1735138236963,-500.0,0.00011719,2]
[346637553,1735138236972,-526.33,0.00011719,2]
[346637554,1735138236982,-492.44821758,0.00011719,2]
[346637555,1735138236998,-7.55178242,0.00011719,2]
[346637556,1735138237007,-335.16703158,0.00011719,2]
[346637649,1735138240595,-500.0,0.00011444,2]
[346637650,1735138240605,-500.0,0.00011445,2]
[346637651,1735138240614,-500.0,0.00011445,2]
[346637652,1735138240624,-500.0,0.00011445,2]
[346637653,1735138240634,-169.63611046,0.00011619,2]
[346637654,1735138240644,-500.0,0.00011718,2]
[346637655,1735138240654,-182.90296842,0.00011719,2]
[346637656,1735138240663,-8.05851689,0.00011719,2]
[346637657,1735138240676,-279.5814988,0.00011719,2]
[346637658,1735138240757,-791.11998431,0.00011719,2]
[346637659,1735138240767,-500.0,0.00011719,2]
[346637660,1735138240777,-500.0,0.00011719,2]
[346637661,1735138240787,-500.0,0.00011719,2]
[346637662,1735138240796,-500.0,0.00011719,2]
[346637663,1735138240806,-965.97801569,0.00011719,2]
[346637679,1735138243313,-500.0,0.00011445,2]
[346637681,1735138243323,-500.0,0.00011445,2]
[346637682,1735138243333,-730.0,0.000117,2]
[346637683,1735138243342,-179.49198431,0.00011719,2]
[346637684,1735138243352,-500.0,0.00011719,2]
[346637685,1735138243361,-1073.77,0.00011719,2]
[346637686,1735138243372,-500.0,0.00011719,2]
[346637687,1735138243381,-581.69,0.00011719,2]
[346637688,1735138243390,-500.0,0.00011719,2]
[346637689,1735138243400,-500.0,0.00011719,2]
[346637690,1735138243409,-167.52374411,0.00011719,2]
[346637691,1735138243421,-3356.83625589,0.00011719,2]
[346637692,1735138243430,-500.0,0.00011719,2]
[346637693,1735138243440,-500.0,0.00011719,2]
[346637694,1735138243449,-500.0,0.00011719,2]
[346637695,1735138243458,-1078.36,0.00011719,2]
[346637696,1735138243467,-500.0,0.00011719,2]
[346637697,1735138243477,-500.0,0.00011719,2]
[346637698,1735138243487,-500.0,0.00011719,2]
[346637699,1735138243496,-778.38,0.00011719,2]
[346637700,1735138243505,-2050.37,0.00011719,2]
[346637701,1735138243514,-500.0,0.00011719,2]
[346637702,1735138243524,-7901.65,0.00011719,2]
[346637703,1735138243533,-1087.60374411,0.00011719,2]
[346637704,1735138243544,-728.93469352,0.00011719,2]
[346637705,1735138243556,-606.25156237,0.00011719,2]
[346637706,1735138243565,-500.0,0.00011719,2]
[346637708,1735138243575,-290.97306299,0.00011719,2]
[346637709,1735138243635,-209.02693701,0.00011719,2]
[346637710,1735138243645,-765.29,0.00011719,2]
[346637712,1735138243859,-529.68,0.00011719,2]
[346637713,1735138243870,-500.0,0.00011719,2]
[346637714,1735138243880,-500.0,0.00011719,2]
[346637715,1735138243890,-500.0,0.00011719,2]
[346637716,1735138243900,-500.0,0.00011719,2]
[346637717,1735138243909,-712.8,0.00011719,2]
[346637718,1735138243923,-776.31,0.00011719,2]